[Event "SUNWAY"]
[Date "2016.12.16"]
[Round "1.1"]
[White "Betaneli, Alexander"]
[Black "Kamsky, Gata"]
[Result "1/2-1/2"]
[WhiteElo "2252"]
[BlackElo "2661"]
[ECO "A10"]
[WhiteFed "USA"]
[BlackFed "USA"]
[FCGameId "-1649444367"]
[TimeControl "5400+30"]

1. c4 {[%clk 1:30:57]} g6 {[%clk 1:30:13]} 2. g3 {[%clk 1:31:22]} c6  {[%clk 1:30:13]} 3. Nf3 {[%clk 1:29:22]} Bg7 {[%clk 1:30:02]} 4. Bg2  {[%clk 1:28:32]} d5 {[%clk 1:30:21]} 5. O-O {[%clk 1:27:52]} Nf6  {[%clk 1:30:10]} 6. Qc2 {[%clk 1:24:06]} O-O {[%clk 1:28:10]} 7. d3  {[%clk 1:19:36]} Re8 {[%clk 1:25:28]} 8. e4 {[%clk 1:17:29]} dxe4  {[%clk 1:18:23]} 9. dxe4 {[%clk 1:17:47]} Bg4 {[%clk 1:18:36]} 10. Bf4  {[%clk 1:08:55]} Nfd7 {[%clk 1:12:01]} 11. Nbd2 {[%clk 1:06:19]} a5  {[%clk 1:04:31]} 12. h3 {[%clk 0:59:55]} Be6 {[%clk 0:59:34]} 13. Ng5  {[%clk 0:52:29]} Nc5 {[%clk 0:57:07]} 14. Nb3 {[%clk 0:47:20]} Qd3  {[%clk 0:56:19]} 15. Qxd3 {[%clk 0:36:24]} Nxd3 {[%clk 0:56:38]} 16. Nxe6  {[%clk 0:36:00]} fxe6 {[%clk 0:57:02]} 17. e5 {[%clk 0:27:26]} Nd7  {[%clk 0:39:32]} 18. Rad1 {[%clk 0:22:20]} N7xe5 {[%clk 0:36:26]} 19. Bxe5  {[%clk 0:21:53]} Nxe5 {[%clk 0:36:51]} 20. Nc5 {[%clk 0:22:08]} Nxc4  {[%clk 0:37:08]} 21. Nxb7 {[%clk 0:18:38]} Nxb2 {[%clk 0:35:05]} 22. Rc1  {[%clk 0:17:16]} Bd4 {[%clk 0:31:56]} 23. Bxc6 {[%clk 0:13:50]} Rec8  {[%clk 0:31:54]} 24. Bd7 {[%clk 0:09:59]} Rxc1 {[%clk 0:32:06]} 25. Bxe6+  {[%clk 0:09:45]} Kg7 {[%clk 0:31:02]} 26. Rxc1 {[%clk 0:10:09]} Bxf2+  {[%clk 0:30:59]} 27. Kg2 {[%clk 0:10:29]} Bd4 {[%clk 0:31:21]} 28. Rf1  {[%clk 0:08:24]} Bf6 {[%clk 0:30:52]} 29. Nc5 {[%clk 0:08:11]} a4  {[%clk 0:31:04]} 30. Bd5 {[%clk 0:04:33]} Ra5 {[%clk 0:31:26]} 31. Ne6+  {[%clk 0:04:55]} Kh6 {[%clk 0:31:38]} 32. Bf3 {[%clk 0:04:18]} Re5  {[%clk 0:30:35]} 33. Nf4 {[%clk 0:03:17]} a3 {[%clk 0:30:13]} 34. Rc1  {[%clk 0:03:05]} g5 {[%clk 0:27:38]} 35. Ne2 {[%clk 0:02:47]} Nd3  {[%clk 0:27:55]} 36. Rd1 {[%clk 0:01:54]} Re3 {[%clk 0:28:00]} 37. Bg4  {[%clk 0:00:51]} Ne5 {[%clk 0:25:36]} 38. Nd4 {[%clk 0:00:54]} Nxg4  {[%clk 0:25:47]} 39. hxg4 {[%clk 0:01:18]} Bxd4 {[%clk 0:26:08]} 40. Rxd4  {[%clk 0:31:44]} Re2+ {[%clk 0:56:35]} 41. Kh3 {[%clk 0:31:58]} Re3  {[%clk 0:54:56]} 42. Rd2 {[%clk 0:29:43]} Kg6 {[%clk 0:55:15]} 43. Re2  {[%clk 0:28:34]} Rd3 {[%clk 0:50:55]} 44. Rxe7 {[%clk 0:28:34]} h5  {[%clk 0:51:18]} 45. gxh5+ {[%clk 0:26:33]} Kxh5 {[%clk 0:51:43]} 46. Re4  {[%clk 0:25:55]} Rd2 {[%clk 0:51:56]} 47. g4+ {[%clk 0:25:08]} Kg6  {[%clk 0:52:20]} 48. Re3 {[%clk 0:24:25]} Rxa2 {[%clk 0:52:45]} 49. Rf3  {[%clk 0:24:51]} Ra1 {[%clk 0:53:11]} 50. Kg2 {[%clk 0:24:40]} a2  {[%clk 0:53:36]} 51. Ra3 {[%clk 0:24:57]} Kf6 {[%clk 0:54:03]} 52. Ra5  {[%clk 0:24:31]} Ke6 {[%clk 0:54:28]} 53. Ra4 {[%clk 0:24:42]} Kd5  {[%clk 0:54:35]} 54. Ra8 {[%clk 0:24:35]} Kc4 {[%clk 0:54:59]} 55. Ra7  {[%clk 0:24:38]} Kc3 {[%clk 0:55:13]} 56. Rc7+ {[%clk 0:24:37]} Kd3  {[%clk 0:55:34]} 57. Ra7 {[%clk 0:24:22]} Rc1 {[%clk 0:55:48]} 58. Rxa2  {[%clk 0:24:11]} Rc2+ {[%clk 0:56:13]} 59. Rxc2 {[%clk 0:24:38]} Kxc2  {[%clk 0:56:40]} 60. Kf2 {[%clk 0:24:53]} Kd3 {[%clk 0:56:57]} 61. Kf3  {[%clk 0:25:14]} Kd4 {[%clk 0:57:24]} 62. Kf2 {[%clk 0:25:28]} Ke4  {[%clk 0:57:50]} 63. Kg3 {[%clk 0:25:54]} Ke3 {[%clk 0:58:17]} 64. Kg2  {[%clk 0:26:13]} Kf4 {[%clk 0:58:45]} 65. Kf2 {[%clk 0:26:31]} Kxg4  {[%clk 0:59:12]} 66. Kg2 {[%clk 0:26:57]} Kf4 {[%clk 0:59:39]} 67. Kf2  {[%clk 0:27:23]} g4 {[%clk 1:00:06]} 68. Kg2 {[%clk 0:27:45]} g3  {[%clk 1:00:35]} 69. Kg1 {[%clk 0:28:09]} Kf3 {[%clk 1:01:01]} 70. Kf1  {[%clk 0:28:35]} g2+ {[%clk 1:01:28]} 71. Kg1 {[%clk 0:29:01]} Kg3  {[%clk 1:01:55]} 1/2-1/2

[Event "SUNWAY"]
[Date "2016.12.16"]
[Round "1.2"]
[White "Sasikiran, Krishnan"]
[Black "Pratyusha, Bodda"]
[Result "1-0"]
[WhiteElo "2661"]
[BlackElo "2247"]
[ECO "C95"]
[WhiteFed "IND"]
[BlackFed "IND"]
[FCGameId "-619405440"]
[TimeControl "5400+30"]

1. e4 {[%clk 1:30:56]} e5 {[%clk 1:30:19]} 2. Nf3 {[%clk 1:31:17]} Nc6  {[%clk 1:30:45]} 3. Bb5 {[%clk 1:31:30]} a6 {[%clk 1:30:57]} 4. Ba4  {[%clk 1:31:52]} Nf6 {[%clk 1:31:23]} 5. O-O {[%clk 1:32:09]} Be7  {[%clk 1:31:49]} 6. Re1 {[%clk 1:32:10]} b5 {[%clk 1:32:10]} 7. Bb3  {[%clk 1:32:26]} d6 {[%clk 1:32:29]} 8. c3 {[%clk 1:32:44]} O-O {[%clk 1:32:40]}  9. h3 {[%clk 1:32:55]} Nb8 {[%clk 1:32:37]} 10. d4 {[%clk 1:33:10]} Nbd7  {[%clk 1:32:57]} 11. Nbd2 {[%clk 1:33:11]} Bb7 {[%clk 1:33:00]} 12. Bc2  {[%clk 1:33:08]} Re8 {[%clk 1:32:55]} 13. Nf1 {[%clk 1:32:34]} Bf8  {[%clk 1:33:15]} 14. Ng3 {[%clk 1:32:54]} g6 {[%clk 1:33:29]} 15. b3  {[%clk 1:32:24]} Bg7 16. d5 {[%clk 1:32:24]} h6 17. Be3 {[%clk 1:32:24]} Qe7 18.  Qd2 {[%clk 1:32:24]} Qf8 19. c4 {[%clk 1:32:24]} Red8 20. Rad1 {[%clk 1:32:24]}  Kh7 21. a4 {[%clk 1:32:24]} bxa4 22. bxa4 {[%clk 1:32:24]} a5 23. Rb1  {[%clk 1:32:24]} Ba6 24. Qxa5 {[%clk 1:32:24]} Bxc4 25. Qc3 {[%clk 1:32:24]} Ba6  26. a5 {[%clk 1:32:24]} Nc5 27. Bxc5 {[%clk 1:32:24]} dxc5 28. Ba4  {[%clk 1:32:24]} Ne8 29. Bb5 {[%clk 1:32:24]} Qd6 30. Nd2 {[%clk 1:32:24]} f5  31. exf5 {[%clk 1:32:24]} Qxd5 32. fxg6+ {[%clk 1:32:24]} Kh8 33. Nge4  {[%clk 1:32:24]} Nd6 34. Bxa6 {[%clk 1:32:24]} Rxa6 35. Qxc5 {[%clk 1:32:24]}  Nxe4 36. Nxe4 {[%clk 1:32:24]} Rxg6 37. Qxc7 {[%clk 1:32:24]} Ra6 38. Rbd1  {[%clk 1:32:24]} Qxd1 39. Rxd1 {[%clk 1:32:24]} Rxd1+ 40. Kh2 {[%clk 1:32:24]}  Ra8 41. Qb6 {[%clk 1:32:24]} Rdd8 42. Nd6 {[%clk 1:32:24]} Rdb8 43. Nf7+  {[%clk 1:32:24]} Kg8 1-0

[Event "SUNWAY"]
[Date "2016.12.16"]
[Round "1.3"]
[White "Sadhwani,Raunak"]
[Black "Ivanisevic, Ivan"]
[Result "0-1"]
[WhiteElo "2246"]
[BlackElo "2648"]
[ECO "B49"]
[WhiteFed "IND"]
[BlackFed "SRB"]
[FCGameId "1315953440"]
[TimeControl "5400+30"]

1. e4 c5 2. Nf3 e6 3. d4 cxd4 4. Nxd4 Nc6 5. Nc3 Qc7 6. Be3 a6 7. Be2 b5 8. Nxc6  Qxc6 9. Bf3 Bb7 10. O-O Qc7 11. Re1 Bd6 12. g3 Ne7 13. Qd2 Be5 14. Rad1 Rd8 15.  Bg2 O-O 16. f4 Bxc3 17. Qxc3 Qxc3 18. bxc3 Bc6 19. Bc5 Rfe8 20. Rd3 Rc8 21. Bb4  f6 22. Red1 Rc7 23. Kf2 Kf7 24. Bd6 Rb7 25. Bf3 Nc8 26. Bc5 Rd8 27. Ke3 Rc7 28.  Bd6 Nxd6 29. Rxd6 Ke7 30. R1d3 Ra7 31. R6d4 Rc8 32. Kd2 a5 33. a3 Rac7 34. h4 e5  35. fxe5 fxe5 36. Rd6 b4 37. axb4 Bb5 38. R6d5 Bxd3 39. Rxe5+ Kd8 40. cxd3 axb4  41. cxb4 Rb8 42. Rg5 g6 43. h5 Rc6 44. e5 Ra6 45. Be4 Rbb6 46. hxg6 hxg6 47. Ke3  Ke7 48. b5 Rxb5 49. Bxg6 Raa5 50. d4 Rb3+ 51. Ke4 Raa3 52. Bf5 Re3+ 53. Kf4 Rf3+  54. Ke4 Rae3+ 55. Kd5 Rxg3 56. Rxg3 Rxg3 57. Ke4 Ra3 58. Kd5 Ra6 59. Bg4 Kd8 60.  Bf5 Kc7 61. Bg4 Ra5+ 62. Ke4 Kc6 63. Bf5 Ra1 64. Bg4 Re1+ 65. Kd3 Rf1 66. Ke4  Rf7 67. Bf5 Rg7 68. Bh3 Rh7 69. Bf5 Rh4+ 70. Ke3 Rh8 71. Ke4 Re8 72. Kd3 Re7 73.  Be4+ Kb5 74. Bf5 Kb4 75. Bg4 Rg7 76. Bf5 Kb3 77. d5 Kb4 78. d6 Kc5 79. e6 dxe6  80. Bxe6 Kxd6 81. Ba2 Ke5 82. Kc2 Kd4 83. Kb2 Rg2+ 84. Ka1 Kc3 85. Bb1 Kb3 86.  Bf5 Rg1+ 87. Bb1 Rg5 88. Ba2+ Ka3 89. Bb1 Rg2 90. Bf5 Ra2+ 91. Kb1 Rf2 92. Bd3  Kb3 93. Kc1 Kc3 94. Bb5 Rf5 95. Be2 Rg5 96. Kb1 Rg1+ 0-1

[Event "SUNWAY"]
[Date "2016.12.16"]
[Round "1.4"]
[White "Granda Zuniga, Julio E"]
[Black "Coll Ortega, Jordi"]
[Result "1-0"]
[WhiteElo "2646"]
[BlackElo "2243"]
[ECO "E92"]
[WhiteFed "PER"]
[BlackFed "ESP"]
[FCGameId "620088707"]
[TimeControl "5400+30"]

1. d4 {[%clk 1:30:29]} Nf6 {[%clk 1:30:53]} 2. c4 {[%clk 1:30:55]} g6  {[%clk 1:31:17]} 3. Nc3 {[%clk 1:31:20]} Bg7 {[%clk 1:31:41]} 4. e4  {[%clk 1:31:43]} d6 {[%clk 1:32:07]} 5. Nf3 {[%clk 1:29:58]} O-O  {[%clk 1:32:28]} 6. Be2 {[%clk 1:30:20]} e5 {[%clk 1:32:48]} 7. d5  {[%clk 1:29:54]} a5 {[%clk 1:33:08]} 8. Bg5 {[%clk 1:30:16]} h6 {[%clk 1:33:20]}  9. Bh4 {[%clk 1:30:42]} Na6 {[%clk 1:33:38]} 10. Nd2 {[%clk 1:29:51]} Bd7  {[%clk 1:33:46]} 11. a3 {[%clk 1:28:53]} Qe8 {[%clk 1:33:54]} 12. b3  {[%clk 1:28:16]} Nh7 {[%clk 1:34:10]} 13. f3 {[%clk 1:22:29]} h5  {[%clk 1:31:18]} 14. Rb1 {[%clk 1:18:20]} Bh6 {[%clk 1:30:37]} 15. O-O  {[%clk 1:17:13]} Be3+ {[%clk 1:31:00]} 16. Kh1 {[%clk 1:17:39]} Bc5  {[%clk 1:31:18]} 17. Qc1 {[%clk 1:13:50]} f5 {[%clk 1:31:35]} 18. exf5  {[%clk 1:13:44]} gxf5 {[%clk 1:31:58]} 19. f4 {[%clk 1:10:49]} exf4  {[%clk 1:23:05]} 20. Rxf4 {[%clk 1:08:27]} Qe5 {[%clk 1:20:51]} 21. Rf1  {[%clk 0:59:42]} Qg7 {[%clk 1:19:00]} 22. Nf3 {[%clk 0:48:54]} Rae8  {[%clk 1:15:30]} 23. Be1 {[%clk 0:41:30]} Nf6 {[%clk 1:07:32]} 24. Bd3  {[%clk 0:35:32]} Re3 {[%clk 0:50:07]} 25. Qc2 {[%clk 0:30:58]} Ng4  {[%clk 0:38:59]} 26. Nb5 {[%clk 0:16:13]} f4 {[%clk 0:22:24]} 27. Bc3  {[%clk 0:15:51]} Qe7 {[%clk 0:18:27]} 28. b4 {[%clk 0:06:42]} axb4  {[%clk 0:18:42]} 29. axb4 {[%clk 0:07:10]} Rxd3 {[%clk 0:18:30]} 30. Qxd3  {[%clk 0:07:06]} Bf5 {[%clk 0:18:55]} 31. Qd1 {[%clk 0:03:58]} Nf2+  {[%clk 0:14:20]} 32. Rxf2 {[%clk 0:04:26]} Bxf2 {[%clk 0:14:44]} 33. Rb2  {[%clk 0:03:56]} Be3 {[%clk 0:14:52]} 34. Nbd4 {[%clk 0:04:14]} Bg4  {[%clk 0:14:21]} 35. h3 {[%clk 0:03:54]} Bd7 {[%clk 0:12:06]} 36. Re2  {[%clk 0:02:39]} Qh7 {[%clk 0:05:23]} 37. Ne6 {[%clk 0:01:31]} Bxe6  {[%clk 0:02:12]} 38. dxe6 {[%clk 0:01:59]} Qe4 {[%clk 0:01:02]} 39. Ng5  {[%clk 0:01:36]} Qf5 {[%clk 0:00:45]} 40. Qd5 {[%clk 0:31:51]} c6  {[%clk 0:30:51]} 41. Qxf5 {[%clk 0:31:54]} Rxf5 {[%clk 0:31:13]} 42. Ne4  {[%clk 0:32:10]} Nc7 {[%clk 0:18:05]} 43. Nxd6 {[%clk 0:32:06]} Rf8  {[%clk 0:18:19]} 44. e7 {[%clk 0:21:15]} Ra8 {[%clk 0:18:14]} 45. Be5  {[%clk 0:18:17]} b5 {[%clk 0:05:47]} 46. cxb5 {[%clk 0:15:11]} cxb5  {[%clk 0:06:01]} 47. g3 {[%clk 0:14:32]} Ne8 {[%clk 0:04:06]} 48. gxf4  {[%clk 0:14:30]} 1-0

[Event "SUNWAY"]
[Date "2016.12.16"]
[Round "1.5"]
[White "Kucuksari, Kaan"]
[Black "Romanov, Evgeny"]
[Result "0-1"]
[WhiteElo "2243"]
[BlackElo "2622"]
[ECO "A47"]
[WhiteFed "TUR"]
[BlackFed "RUS"]
[FCGameId "-594720625"]
[TimeControl "5400+30"]

1. d4 {[%clk 1:30:57]} Nf6 {[%clk 1:30:04]} 2. Nf3 {[%clk 1:31:21]} b6  {[%clk 1:27:57]} 3. g3 {[%clk 1:30:57]} Bb7 {[%clk 1:27:57]} 4. Bg2  {[%clk 1:31:21]} c5 {[%clk 1:27:31]} 5. O-O {[%clk 1:29:56]} cxd4  {[%clk 1:25:47]} 6. Nxd4 {[%clk 1:30:07]} Bxg2 {[%clk 1:25:17]} 7. Kxg2 Qc7  {[%clk 1:23:47]} 8. Nc3 {[%clk 1:15:32]} Qb7+ {[%clk 1:23:28]} 9. Kg1  {[%clk 1:11:26]} d5 {[%clk 1:19:19]} 10. Nf3 {[%clk 1:04:08]} Nbd7  {[%clk 1:18:47]} 11. Bf4 {[%clk 1:02:27]} Rc8 {[%clk 1:18:30]} 12. Re1  {[%clk 1:01:42]} e6 {[%clk 1:16:57]} 13. Nb5 {[%clk 0:53:40]} Ne4  {[%clk 1:15:07]} 14. Nd2 {[%clk 0:51:34]} Nxd2 {[%clk 1:12:49]} 15. Bxd2  {[%clk 0:51:50]} a6 {[%clk 1:12:58]} 16. Nd4 {[%clk 0:52:06]} Bc5  {[%clk 1:12:25]} 17. Bc3 {[%clk 0:51:06]} O-O {[%clk 1:10:11]} 18. Nf3  {[%clk 0:50:17]} b5 {[%clk 1:08:38]} 19. Rc1 {[%clk 0:44:36]} b4  {[%clk 1:06:38]} 20. Bd4 {[%clk 0:44:39]} Bd6 {[%clk 0:57:28]} 21. b3  {[%clk 0:41:35]} e5 {[%clk 0:55:37]} 22. Ba1 {[%clk 0:40:03]} f6  {[%clk 0:55:27]} 23. c4 {[%clk 0:30:52]} bxc3 {[%clk 0:54:58]} 24. Bxc3  {[%clk 0:31:12]} Ba3 {[%clk 0:53:39]} 25. Rc2 {[%clk 0:31:29]} d4  {[%clk 0:49:51]} 26. Bb2 {[%clk 0:31:20]} Bb4 {[%clk 0:47:28]} 27. Rf1  {[%clk 0:31:11]} Qe4 {[%clk 0:40:45]} 28. Rxc8 {[%clk 0:30:18]} Rxc8  {[%clk 0:41:13]} 29. a3 {[%clk 0:27:56]} Bf8 {[%clk 0:39:28]} 30. Ne1  {[%clk 0:25:33]} Nb6 {[%clk 0:34:58]} 31. Nd3 {[%clk 0:24:14]} Qd5 32. Qb1  {[%clk 0:13:20]} Qxb3 {[%clk 0:31:31]} 33. Bxd4 {[%clk 0:12:56]} Qxb1  {[%clk 0:31:53]} 34. Rxb1 {[%clk 0:13:21]} Nc4 {[%clk 0:32:12]} 35. Bc3  {[%clk 0:10:17]} Nxa3 {[%clk 0:27:54]} 36. Rb3 {[%clk 0:10:02]} Nb5  {[%clk 0:28:12]} 37. Bb2 {[%clk 0:08:07]} Rc4 {[%clk 0:27:27]} 38. f3  {[%clk 0:06:13]} Nd4 {[%clk 0:24:33]} 39. Rb8 {[%clk 0:04:23]} Nxe2+  {[%clk 0:18:22]} 40. Kf2 {[%clk 0:31:43]} Nd4 {[%clk 0:46:57]} 41. Ba3  {[%clk 0:28:28]} Rc2+ {[%clk 0:46:28]} 42. Kg1 {[%clk 0:27:10]} Ne6  {[%clk 0:38:40]} 43. f4 {[%clk 0:22:05]} exf4 {[%clk 0:37:17]} 44. Nxf4  {[%clk 0:21:12]} Kf7 {[%clk 0:37:39]} 45. Rb7+ {[%clk 0:20:59]} Rc7 0-1

[Event "SUNWAY"]
[Date "2016.12.16"]
[Round "1.6"]
[White "Postny, Evgeny"]
[Black "Gonzalez, Raul Omar"]
[Result "1-0"]
[WhiteElo "2620"]
[BlackElo "2240"]
[ECO "A57"]
[WhiteFed "ISR"]
[BlackFed "ESP"]
[FCGameId "-1678366053"]
[TimeControl "5400+30"]

1. d4 {[%clk 1:30:57]} Nf6 {[%clk 1:23:13]} 2. c4 {[%clk 1:31:17]} c5  {[%clk 1:23:25]} 3. d5 {[%clk 1:31:41]} b5 {[%clk 1:23:41]} 4. cxb5  {[%clk 1:32:06]} a6 {[%clk 1:24:05]} 5. e3 {[%clk 1:32:22]} axb5  {[%clk 1:22:24]} 6. Bxb5 {[%clk 1:32:45]} Ba6 {[%clk 1:21:27]} 7. Bxa6  {[%clk 1:32:40]} Nxa6 {[%clk 1:21:48]} 8. Nc3 {[%clk 1:31:32]} g6  {[%clk 1:20:45]} 9. Nf3 {[%clk 1:31:21]} d6 {[%clk 1:20:29]} 10. O-O  {[%clk 1:29:25]} Bg7 {[%clk 1:20:50]} 11. Nd2 {[%clk 1:27:31]} O-O  {[%clk 1:21:04]} 12. Nc4 {[%clk 1:27:49]} Qc7 {[%clk 1:18:57]} 13. Bd2  {[%clk 1:25:09]} Rfb8 {[%clk 1:19:12]} 14. b3 {[%clk 1:17:59]} Nb4  {[%clk 1:08:32]} 15. e4 {[%clk 1:17:26]} Nd7 {[%clk 1:08:34]} 16. a3  {[%clk 1:11:21]} Na6 {[%clk 1:07:29]} 17. Qc2 {[%clk 1:10:49]} Rb7  {[%clk 1:06:06]} 18. Rab1 {[%clk 1:09:20]} Nab8 {[%clk 1:01:47]} 19. a4  {[%clk 1:07:10]} Nf8 {[%clk 0:58:15]} 20. Nb5 {[%clk 1:05:58]} Qd8  {[%clk 0:58:11]} 21. f4 {[%clk 1:01:01]} Nbd7 {[%clk 0:56:28]} 22. Bc3  {[%clk 0:59:26]} Nf6 {[%clk 0:48:47]} 23. Rbd1 {[%clk 0:59:19]} Ne8  {[%clk 0:41:13]} 24. e5 {[%clk 0:58:01]} f5 {[%clk 0:35:52]} 25. Rfe1  {[%clk 0:57:20]} Rd7 {[%clk 0:33:43]} 26. Qe2 {[%clk 0:52:24]} Bh6  {[%clk 0:31:09]} 27. exd6 {[%clk 0:46:36]} exd6 {[%clk 0:31:20]} 28. Ba5  {[%clk 0:45:35]} Qh4 {[%clk 0:29:40]} 29. g3 {[%clk 0:45:51]} Qh3  {[%clk 0:29:12]} 30. Nb6 {[%clk 0:46:03]} Rdd8 {[%clk 0:24:30]} 31. Nxa8  {[%clk 0:46:19]} Rxa8 {[%clk 0:24:56]} 32. Bc3 {[%clk 0:46:13]} g5  {[%clk 0:24:51]} 33. fxg5 {[%clk 0:42:44]} Bg7 {[%clk 0:24:55]} 34. Bxg7  {[%clk 0:42:53]} Nxg7 {[%clk 0:25:22]} 35. Nxd6 {[%clk 0:42:52]} Ng6  {[%clk 0:25:34]} 36. Qg2 {[%clk 0:41:07]} Qg4 {[%clk 0:25:55]} 37. Nc4  {[%clk 0:41:22]} f4 {[%clk 0:24:37]} 38. gxf4 {[%clk 0:41:04]} Qf5  {[%clk 0:24:46]} 39. d6 {[%clk 0:41:23]} Nxf4 {[%clk 0:24:25]} 40. Qxa8+  {[%clk 1:11:49]} Kf7 {[%clk 0:54:41]} 41. Ne5+ {[%clk 1:12:03]} Ke6  {[%clk 0:54:35]} 42. Qc8# {[%clk 1:12:23]} 1-0

[Event "SUNWAY"]
[Date "2016.12.16"]
[Round "1.7"]
[White "Domingo Nunez, Ruben"]
[Black "Edouard, Romain"]
[Result "0-1"]
[WhiteElo "2239"]
[BlackElo "2611"]
[ECO "B51"]
[WhiteFed "ESP"]
[BlackFed "FRA"]
[FCGameId "1704815157"]
[TimeControl "5400+30"]

1. e4 {[%clk 1:30:48]} c5 {[%clk 1:30:56]} 2. Nf3 {[%clk 1:30:49]} d6  {[%clk 1:31:14]} 3. Bb5+ {[%clk 1:29:58]} Nd7 {[%clk 1:31:33]} 4. d4  {[%clk 1:29:57]} cxd4 {[%clk 1:31:55]} 5. Qxd4 {[%clk 1:30:16]} a6  {[%clk 1:32:08]} 6. Bxd7+ {[%clk 1:29:56]} Qxd7 {[%clk 1:32:02]} 7. Nc3  {[%clk 1:16:58]} e5 {[%clk 1:28:34]} 8. Qd3 {[%clk 1:15:54]} f5 9. Nd2  {[%clk 1:00:36]} Nf6 {[%clk 1:26:52]} 10. f3 b5 {[%clk 1:22:12]} 11. O-O  {[%clk 0:52:50]} f4 {[%clk 1:18:07]} 12. Nd5 {[%clk 0:44:08]} Nxd5  {[%clk 1:17:27]} 13. exd5 {[%clk 0:44:34]} Be7 {[%clk 1:17:21]} 14. Ne4  {[%clk 0:42:54]} O-O 15. Bd2 {[%clk 0:40:38]} a5 {[%clk 1:17:23]} 16. b4 a4  {[%clk 0:50:41]} 17. Be1 {[%clk 0:34:28]} Qb7 {[%clk 0:50:14]} 18. Bf2 Bd7 19.  Rfd1 {[%clk 0:22:36]} Rac8 {[%clk 0:44:16]} 20. Rac1 {[%clk 0:10:40]} Rc4  {[%clk 0:41:29]} 21. c3 {[%clk 0:10:03]} Bf5 22. Rd2 {[%clk 0:09:46]} Qd7  {[%clk 0:31:10]} 23. Qe2 {[%clk 0:09:46]} Qe8 24. Qd3 g5 {[%clk 0:20:01]} 25. h3  {[%clk 0:01:03]} Qg6 {[%clk 0:18:56]} 26. Re1 {[%clk 0:01:20]} h5  {[%clk 0:18:46]} 27. Ree2 g4 {[%clk 0:14:49]} 28. hxg4 {[%clk 0:01:43]} hxg4  {[%clk 0:15:18]} 29. Kf1 {[%clk 0:00:50]} Qh7 30. Bg1 {[%clk 0:01:01]} Rf7  {[%clk 0:11:28]} 31. Rd1 Rg7 {[%clk 0:06:26]} 32. Bf2 {[%clk 0:00:32]} gxf3 0-1

[Event "SUNWAY"]
[Date "2016.12.16"]
[Round "1.8"]
[White "Vocaturo, Daniele"]
[Black "Juknis, Paulius"]
[Result "1-0"]
[WhiteElo "2606"]
[BlackElo "2235"]
[ECO "E70"]
[WhiteFed "ITA"]
[BlackFed "LTU"]
[FCGameId "493714017"]
[TimeControl "5400+30"]

1. d4 {[%clk 1:30:51]} Nf6 {[%clk 1:30:32]} 2. c4 {[%clk 1:30:51]} g6  {[%clk 1:29:52]} 3. Nc3 {[%clk 1:31:00]} Bg7 {[%clk 1:29:57]} 4. e4  {[%clk 1:30:59]} d6 {[%clk 1:30:03]} 5. Bd3 {[%clk 1:30:48]} O-O  {[%clk 1:28:38]} 6. Nge2 {[%clk 1:30:47]} a6 {[%clk 1:27:49]} 7. O-O Nbd7  {[%clk 1:27:45]} 8. Bc2 {[%clk 1:29:01]} c5 {[%clk 1:24:53]} 9. d5  {[%clk 1:28:57]} b5 {[%clk 1:20:19]} 10. cxb5 {[%clk 1:27:47]} axb5  {[%clk 1:20:20]} 11. Nxb5 {[%clk 1:27:20]} Ba6 {[%clk 1:20:08]} 12. Nec3  {[%clk 1:25:36]} Qa5 {[%clk 1:18:52]} 13. a4 {[%clk 1:23:54]} Rfb8  {[%clk 1:16:57]} 14. Bd2 {[%clk 1:20:22]} Ne8 {[%clk 1:12:25]} 15. Bd3  {[%clk 1:14:10]} Nc7 {[%clk 1:00:15]} 16. Rc1 {[%clk 1:05:08]} Nxb5  {[%clk 0:48:24]} 17. Nxb5 {[%clk 1:03:59]} Qd8 {[%clk 0:46:03]} 18. b3  {[%clk 1:03:56]} Nb6 {[%clk 0:42:16]} 19. Be3 {[%clk 0:53:31]} Nc8  {[%clk 0:38:02]} 20. Rb1 {[%clk 0:49:22]} Qa5 {[%clk 0:23:35]} 21. Qc2  {[%clk 0:48:06]} Qd8 {[%clk 0:14:04]} 22. h3 {[%clk 0:46:15]} Nb6  {[%clk 0:11:38]} 23. Rfe1 {[%clk 0:43:26]} Bc8 {[%clk 0:10:32]} 24. Bd2  {[%clk 0:36:34]} Bd7 {[%clk 0:09:09]} 25. Na3 {[%clk 0:34:58]} Nc8  {[%clk 0:06:51]} 26. Nc4 {[%clk 0:33:03]} Nb6 {[%clk 0:05:58]} 27. Ba5  {[%clk 0:26:17]} 1-0

[Event "SUNWAY"]
[Date "2016.12.16"]
[Round "1.9"]
[White "Damia, Angelo"]
[Black "Zubov, Alexander"]
[Result "0-1"]
[WhiteElo "2233"]
[BlackElo "2606"]
[ECO "B94"]
[WhiteFed "ITA"]
[BlackFed "UKR"]
[FCGameId "-120628934"]
[TimeControl "5400+30"]

1. e4 c5 2. Nf3 d6 3. d4 cxd4 4. Nxd4 Nf6 5. Nc3 a6 6. Bg5 Nbd7 7. f4 Qc7 8. f5  Qb6 9. Qd2 Qxb2 10. Nb3 Nc5 11. Rb1 Qa3 12. Nxc5 Qxc5 13. Be3 Qc6 14. Be2 e6 15.  O-O Be7 16. Bf3 Qc4 17. Be2 Qc6 18. Bf3 Qc7 19. Bb6 Qc4 20. a3 Bd7 21. e5 dxe5  22. Bxb7 Rb8 23. Ba7 Bc5+ 24. Bxc5 Qxc5+ 25. Kh1 exf5 26. Nd5 Ne4 27. Qb4 O-O  28. Ne7+ Kh8 29. Qxc5 Nxc5 30. Bc6 Be6 31. Rbe1 f6 32. Nxf5 Rfc8 33. Bf3 0-1

[Event "SUNWAY"]
[Date "2016.12.16"]
[Round "1.10"]
[White "Van Foreest, Jorden"]
[Black "Movileanu, Daniela"]
[Result "1-0"]
[WhiteElo "2605"]
[BlackElo "2231"]
[ECO "B51"]
[WhiteFed "NED"]
[BlackFed "ITA"]
[FCGameId "1340837117"]
[TimeControl "5400+30"]

1. e4 {[%clk 1:30:56]} c5 {[%clk 1:30:53]} 2. Nf3 {[%clk 1:31:10]} d6  {[%clk 1:31:14]} 3. Bb5+ {[%clk 1:30:37]} Nd7 {[%clk 1:31:20]} 4. d4 cxd4  {[%clk 1:31:31]} 5. Qxd4 {[%clk 1:31:13]} e5 {[%clk 1:28:36]} 6. Qd3  {[%clk 1:30:48]} h6 {[%clk 1:28:25]} 7. O-O {[%clk 1:30:19]} a6 {[%clk 1:28:23]}  8. Bxd7+ {[%clk 1:30:37]} Bxd7 {[%clk 1:28:47]} 9. a4 {[%clk 1:27:25]} Nf6  {[%clk 1:23:38]} 10. c4 {[%clk 1:27:29]} Rc8 {[%clk 1:20:59]} 11. Nc3  {[%clk 1:22:47]} Be7 {[%clk 1:19:28]} 12. Be3 {[%clk 1:20:06]} O-O  {[%clk 1:15:41]} 13. a5 {[%clk 1:19:38]} Qc7 {[%clk 1:13:53]} 14. b3  {[%clk 1:16:35]} Be6 {[%clk 1:08:53]} 15. Rfc1 {[%clk 1:14:48]} Ng4  {[%clk 0:57:18]} 16. Bb6 {[%clk 1:12:49]} Qd7 {[%clk 0:52:15]} 17. Nd5  {[%clk 1:07:34]} f5 {[%clk 0:42:01]} 18. Rd1 {[%clk 1:07:43]} fxe4  {[%clk 0:41:14]} 19. Qxe4 {[%clk 1:07:48]} Bf5 {[%clk 0:40:14]} 20. Nxe7+  {[%clk 1:06:34]} Qxe7 {[%clk 0:40:33]} 21. Qd5+ {[%clk 1:07:01]} Kh7  {[%clk 0:37:18]} 22. Qxd6 {[%clk 1:07:16]} Qf7 {[%clk 0:37:18]} 23. h3  {[%clk 1:02:38]} Nf6 {[%clk 0:29:22]} 24. Nxe5 {[%clk 1:02:44]} Qe8  {[%clk 0:29:24]} 25. Re1 {[%clk 1:02:27]} Ne4 {[%clk 0:25:37]} 26. Qd5  {[%clk 1:01:50]} Ng5 27. f4 {[%clk 0:58:54]} Ne6 {[%clk 0:20:59]} 28. Nd7  {[%clk 0:58:59]} Rf7 {[%clk 0:17:19]} 29. Nc5 {[%clk 0:59:13]} 1-0